Cogmind - Beta 13 @@@ ROGUE MODE // 2024.04.05 @ 23:11:55 Player: kucifra Result: Destroyed by Enhanced Grunt with Neutron Cannon Performance ------------- Evolutions (4) 2000 Regions Visited (8) 1600 Robots Destroyed (23) 115 Value Destroyed (910) 910 Prototype IDs (1) 20 Alien Tech Used (0) 0 Bonus (1095) 1095 TOTAL SCORE: 5740 Bonus ------- Follower Combat Kills 445 Met Data Miner 300 Met Imprinter 300 Was Imprinted 300 Friendly Fire -250 Cogmind --------- Core Integrity 0/850 Matter 145/300 Energy 100/100 System Corruption 5% Temperature Cool (0) Movement Core (250) Ox4 Location -6/Data Miner Parts ------- > --- POWER (1) -------- (None) > --- PROPULSION (4) --- (None) > --- UTILITY (6) ------ Medium Storage Unit Hacking Suite > --- WEAPON (4) ------- CR-A16's Pointy Stick > --- INVENTORY (10) --- Ion Engine Advanced Heat Sink Large Storage Unit Seismic Detector Armor Integrity Analyzer Reaction Control System Hacking Drone Bay (0/1) Self-destruct Interrupter (50) Peak State ------------ > --- POWER ------------ Improved Ion Engine > --- PROPULSION ------- Light Treads Light Treads Flight Unit Flight Unit > --- UTILITY ---------- Medium Storage Unit Terrain Scanner Terrain Scan Processor Transmission Jammer Hacking Suite Hacking Drone Bay > --- WEAPON ----------- Heavy Rocket Launcher CR-A16's Pointy Stick > --- INVENTORY -------- Ion Engine Advanced Heat Sink Large Storage Unit Seismic Detector Improved Melee Analysis Suite Reaction Control System Shield Generator Self-destruct Interrupter [Rating: 36] Favorites ----------- Power Improved Ion Engine Engine Improved Ion Engine Propulsion Light Treads Treads Light Treads Leg Aluminum Leg Flight Unit Flight Unit Utility Hacking Suite Device Terrain Scanner Storage Medium Storage Unit Processor Terrain Scan Processor Hackware Hacking Suite Weapon CR-A16's Pointy Stick Energy Gun Particle Gun Ballistic Gun Assault Rifle Launcher Grenade Launcher Piercing Weapon CR-A16's Pointy Stick Build | -11 -10 -9 -9 -7 -6 -6 -6 -6 ------- Run | Yrd Mat Mat Min Zio Pro Fac Low Dat Slots Evolved 8 | . . 2 . . . 6 . . Power . | . . . . . . . . . Propulsion 2 | . . . . . . 2 . . Utility 4 | . . 2 . . . 2 . . Weapon 2 | . . . . . . 2 . . Parts Attached 39 | 5 5 12 . 6 1 7 . 3 Power 4 | 1 . 3 . . . . . . Engine 4 | 1 . 3 . . . . . . Core . | . . . . . . . . . Reactor . | . . . . . . . . . Propulsion 6 | 2 . 2 . . . 2 . . Treads 2 | . . 2 . . . . . . Leg 2 | 2 . . . . . . . . Wheel . | . . . . . . . . . Hover . | . . . . . . . . . Flight 2 | . . . . . . 2 . . Utility 18 | . 3 6 . 3 . 5 . 1 Device 10 | . 2 2 . 2 . 3 . 1 Storage 4 | . . 4 . . . . . . Processor 3 | . . . . 1 . 2 . . Hackware 1 | . 1 . . . . . . . Protection . | . . . . . . . . . Artifact . | . . . . . . . . . Weapon 11 | 2 2 1 . 3 1 . . 2 Energy Gun 1 | . 1 . . . . . . . Energy Cannon . | . . . . . . . . . Ballistic Gun 3 | 2 1 . . . . . . . Ballistic Cannon . | . . . . . . . . . Launcher 5 | . . 1 . 2 1 . . 1 Special Weapon . | . . . . . . . . . Impact Weapon . | . . . . . . . . . Slashing Weapon . | . . . . . . . . . Piercing Weapon 2 | . . . . 1 . . . 1 Special Melee Weapon . | . . . . . . . . . Unidentified Prototypes 1 | . . . . 1 . . . . Parts Lost 14 | . . 1 . . 1 . . 12 Power 2 | . . 1 . . . . . 1 Propulsion 4 | . . . . . . . . 4 Utility 5 | . . . . . . . . 5 Weapon 3 | . . . . . 1 . . 2 Highest Loss Streak 12 | . . 1 . . 1 . . 12 To Critical Strikes . | . . . . . . . . . Average Slot Usage (%) 97 | . 91 98 100 100 100 86 86 62 Engine 10 | . 14 10 11 11 11 6 6 4 Treads 17 | . . 12 22 22 22 13 13 7 Leg 3 | . 28 10 . . . . . . Flight 1 | . . . . . . 13 13 8 Device 14 | . 17 17 22 14 11 16 13 8 Storage 9 | . . 14 11 11 11 6 6 6 Processor 6 | . . . . 7 11 9 13 9 Hackware 9 | . 2 11 11 11 11 6 6 6 Ballistic Gun 5 | . 26 11 11 3 . . . . Launcher 8 | . . 6 11 11 11 6 6 3 Piercing Weapon 6 | . . . . 7 11 6 6 6 Naked Turns . | . . . . . . . . . Heaviest Build 49 | 6 9 49 22 24 28 31 29 29 Greatest Support 40 | 20 20 40 40 40 40 40 40 40 Greatest Overweight (x) 7 | . . 2 . . . . . 7 Average Overweight (x) . | . . . . . . . . . Largest Inventory Capacity 15 | 5 5 15 10 10 10 10 10 10 Average Capacity 9 | 5 5 11 10 10 10 10 10 10 Most Carried 12 | 4 5 12 9 10 10 10 10 10 Average Carried 8 | 1 4 8 9 9 9 7 10 9 Final Capacity 10 | 5 5 10 10 10 10 10 10 10 Final Carried 10 | 3 5 9 9 10 9 10 10 8 Class Distribution -------------------- 84% | Scavenger-Mutant 15% | Mutant Dominant Class ---------------- Mutant | -10/Materials Mutant | -9/Materials Scavenger-Mutant | -9/Mines Scavenger-Mutant | -7/Zion Scavenger-Mutant | -6/Proximity Caves Scavenger-Mutant | -6/Factory Scavenger-Mutant | -6/Lower Caves Scavenger-Mutant | -6/Data Miner Resources | -11 -10 -9 -9 -7 -6 -6 -6 -6 ----------- Run | Yrd Mat Mat Min Zio Pro Fac Low Dat Matter Collected 905 | 266 137 227 . . 275 . . . Remotely . | . . . . . . . . . Salvage Created 684 | 39 157 223 . . 115 . . 150 Parts 43 | 1 12 19 . . 5 . . 6 Haulers Intercepted . | . . . . . . . . . Recyclers Shooed . | . . . . . . . . . Parts Field Recycled . | . . . . . . . . . Retrieved Matter . | . . . . . . . . . Parts Self-Destructed 21 | . . . . 3 15 . 3 . Prevented 3 | . . . . . 2 . 1 . Kills | -11 -10 -9 -9 -7 -6 -6 -6 -6 ------- Run | Yrd Mat Mat Min Zio Pro Fac Low Dat Combat Hostiles Destroyed 21 | 1 5 9 . . 3 . . 3 Guns 7 | 1 5 1 . . . . . . AOE 14 | . . 8 . . 3 . . 3 Classes Destroyed 6 | 1 2 2 . . 1 . . . Builder 1 | . . 1 . . . . . . Operator 1 | . 1 . . . . . . . Swarmer 7 | . 3 3 . . 1 . . . Grunt 6 | 1 2 3 . . . . . . Sentry 4 | . . 3 . . 1 . . . Hunter 1 | . . . . . 1 . . . Enhanced Grunt 3 | . . . . . . . . 3 Best Kill Streak 3 | 1 3 3 . . 1 . . 3 Combat Bots Only 3 | 1 3 3 . . 1 . . 3 Max Kills in Single Turn 3 | 1 1 3 . . 1 . . 1 Gunslinging . | . . . . . . . . . Exploded 3 | . . 3 . . 1 . . 1 Melee . | . . . . . . . . . Uniques/NPCs Destroyed . | . . . . . . . . . Combat | -11 -10 -9 -9 -7 -6 -6 -6 -6 -------- Run | Yrd Mat Mat Min Zio Pro Fac Low Dat Hostile Shots Fired 121 | 5 22 35 . . 15 . . 44 Missed 29 | 3 2 8 . . 5 . . 11 Damage Taken 2313 | 22 192 317 . . 292 . . 1490 Core 941 | 12 32 18 . . 25 . . 854 Absorbed by Shields 65 | . . 16 . . . . . 49 Regen/Repaired (Parts) 276 | . . . . 276 . . . . Core Remaining (%) 88 | 95 82 . . . 89 . . . Volleys Fired 56 | 4 20 13 . . 14 . . 5 Largest 2 | 2 2 2 . . 1 . . 1 Hottest 85 | 40 40 85 . . 39 . . 39 Shots Fired 93 | 8 40 25 . . 14 . . 6 Gun 63 | 8 40 15 . . . . . . Cannon . | . . . . . . . . . Launcher 30 | . . 10 . . 14 . . 6 Special . | . . . . . . . . . Kinetic 61 | 8 40 13 . . . . . . Thermal 2 | . . 2 . . . . . . Explosive 30 | . . 10 . . 14 . . 6 Electromagnetic . | . . . . . . . . . Robot Hit Streak 5 | 2 3 5 . . 3 . . . Robot Miss Streak 4 | 2 3 4 . . 3 . . 4 Penetration Max . | . . . . . . . . . Secondary Targets 1 | . 1 . . . . . . . Max Gunslinging Chain 1 | . 1 . . . . . . . Shots Hit Robots 50 | 4 24 13 . . 5 . . 4 Core Hits 67 | 2 10 18 . . 16 . . 21 Critical Kills . | . . . . . . . . . Critical Parts Destroyed 1 | . . 1 . . . . . . Critical Strikes 2 | . . 2 . . . . . . Burn 1 | . . 1 . . . . . . Destroy 1 | . . 1 . . . . . . Melee Attacks 6 | . . . . . 1 . . 5 Impact . | . . . . . . . . . Slashing . | . . . . . . . . . Piercing 6 | . . . . . 1 . . 5 Sneak Attacks . | . . . . . . . . . Combat Hostiles . | . . . . . . . . . Follow-up Attacks . | . . . . . . . . . Damage Inflicted 2861 | 41 292 779 . . 891 . . 858 Guns 421 | 41 292 88 . . . . . . Cannons . | . . . . . . . . . Explosions 2312 | . . 691 . . 891 . . 730 Melee 128 | . . . . . . . . 128 Ramming . | . . . . . . . . . Kinetic 407 | 41 292 74 . . . . . . Thermal 14 | . . 14 . . . . . . Explosive 2312 | . . 691 . . 891 . . 730 Electromagnetic . | . . . . . . . . . Impact . | . . . . . . . . . Slashing . | . . . . . . . . . Piercing 128 | . . . . . . . . 128 Highest Corruption 5 | . . . . . . 5 5 5 Average Corruption 2 | . . . . . . 1 5 5 Corruption Purged . | . . . . . . . . . Corruption Blocked . | . . . . . . . . . Effects 7 | . . . . . . 5 . 2 Message Errors 3 | . . . . . . 3 . . Parts Rejected 1 | . . . . . . . . 1 Data Loss (minor) 2 | . . . . . . 2 . . Misfires 1 | . . . . . . . . 1 Overload Shots . | . . . . . . . . . Overflow Damage 31 | . . 19 . . . . . 12 Projectiles . | . . . . . . . . . Explosions 19 | . . 19 . . . . . . Melee 12 | . . . . . . . . 12 Knockbacks . | . . . . . . . . . Impact . | . . . . . . . . . Kinetic . | . . . . . . . . . Secondary . | . . . . . . . . . Self-Inflicted Damage 113 | . . 27 . . 52 . . 34 Shots 5 | . . 2 . . 2 . . 1 Rammed . | . . . . . . . . . Targets Rammed . | . . . . . . . . . Kicked . | . . . . . . . . . Crushed . | . . . . . . . . . Highest Temperature 39 | 6 2 39 . . 2 . . . Average Temperature 12 | 6 2 25 . . 2 . . . Received Heat Transfer 195 | 12 48 99 . . 36 . . . Siege Activations . | . . . . . . . . . Robots Corrupted . | . . . . . . . . . Combat Hostiles . | . . . . . . . . . Parts Fried 1 | . . . . . 1 . . . Impact Corruptions . | . . . . . . . . . Robots Melted . | . . . . . . . . . Combat Hostiles . | . . . . . . . . . Parts Melted . | . . . . . . . . . Heat Transferred 111 | . . 111 . . . . . . Parts Sabotaged . | . . . . . . . . . Parts Stolen . | . . . . . . . . . Parts Stripped . | . . . . . . . . . Power Chain Reactions . | . . . . . . . . . Alert | -11 -10 -9 -9 -7 -6 -6 -6 -6 ------- Run | Yrd Mat Mat Min Zio Pro Fac Low Dat Peak Influence 400 | 20 199 400 111 . . 189 . . Initial 163 | . 13 83 111 . . 163 . . Average 139 | 2 92 199 111 . . 161 . . Maximum Alert Level 2 | . . 2 . . . . . . Low Security (%) 83 | 100 100 44 100 . . 100 . . Level 1 14 | . . 50 . . . . . . Level 2 1 | . . 5 . . . . . . Level 3 . | . . . . . . . . . Level 4 . | . . . . . . . . . Level 5 . | . . . . . . . . . High Security . | . . . . . . . . . Max Security . | . . . . . . . . . Squads Dispatched 4 | . . 3 . . . 1 . . Investigation . | . . . . . . . . . Extermination 1 | . . . . . . 1 . . Reinforcement 3 | . . 3 . . . . . . Assault . | . . . . . . . . . Garrison . | . . . . . . . . . Intercept . | . . . . . . . . . Searches Triggered . | . . . . . . . . . Construction Impeded 1 | . . 1 . . . . . . Haulers Reinforced . | . . . . . . . . . Active Scanning Responses . | . . . . . . . . . Cargo Convoy Interrupts . | . . . . . . . . . Stealth | -11 -10 -9 -9 -7 -6 -6 -6 -6 --------- Run | Yrd Mat Mat Min Zio Pro Fac Low Dat Distress Signals 3 | . 2 1 . . . . . . Communications Jammed . | . . . . . . . . . Distress Signals . | . . . . . . . . . Times Spotted 48 | 1 14 13 . . 12 . 2 6 Peak Tracking Total 6 | 1 6 4 . . 3 1 2 5 Tactical Retreats 2 | . 2 . . . . . . . Traps | -11 -10 -9 -9 -7 -6 -6 -6 -6 ------- Run | Yrd Mat Mat Min Zio Pro Fac Low Dat Traps Triggered 2 | . . . . . . 2 . . Indirectly . | . . . . . . . . . Trap Hack Attempts . | . . . . . . . . . Triggered . | . . . . . . . . . Disarmed . | . . . . . . . . . Reprogrammed . | . . . . . . . . . Reused . | . . . . . . . . . Traps Extracted . | . . . . . . . . . Installed . | . . . . . . . . . Triggered . | . . . . . . . . . Machines | -11 -10 -9 -9 -7 -6 -6 -6 -6 ---------- Run | Yrd Mat Mat Min Zio Pro Fac Low Dat Machines Disabled 4 | . . 3 . . . . . 1 Max in Single Turn 1 | . . 1 . . . . . 1 Machines Repaired . | . . . . . . . . . Machines Dismantled . | . . . . . . . . . Machines Sabotaged . | . . . . . . . . . Overloaded Fab Kills . | . . . . . . . . . Hacking | -11 -10 -9 -9 -7 -6 -6 -6 -6 --------- Run | Yrd Mat Mat Min Zio Pro Fac Low Dat Machines Accessed 6 | . 2 3 . . 1 . . . Terminals 3 | . . 2 . . 1 . . . Fabricators . | . . . . . . . . . Repair Stations . | . . . . . . . . . Recycling Units 2 | . 2 . . . . . . . Scanalyzers 1 | . . 1 . . . . . . Garrison Access . | . . . . . . . . . Total Hacks 15 | . 6 8 . . 1 . . . Successful 13 | . 6 6 . . 1 . . . Failed 2 | . . 2 . . . . . . Catastrophic . | . . . . . . . . . Database Lockouts . | . . . . . . . . . Manual 15 | . . . . 7 2 6 . . Terminals 7 | . . 6 . . 1 . . . Fabricators . | . . . . . . . . . Repair Stations . | . . . . . . . . . Recycling Units 6 | . 6 . . . . . . . Scanalyzers 2 | . . 2 . . . . . . Garrison Access . | . . . . . . . . . Terminal Hacks 5 | . . 4 . . 1 . . . Record 4 | . . 3 . . 1 . . . Zone Layout 1 | . . 1 . . . . . . Fabricator Hacks . | . . . . . . . . . Repair Station Hacks . | . . . . . . . . . Recycling Unit Hacks 6 | . 6 . . . . . . . Process 1 | . 1 . . . . . . . Report Inventory 2 | . 2 . . . . . . . Retrieve Matter 2 | . 2 . . . . . . . Retrieve Components 1 | . 1 . . . . . . . Scanalyzer 2 | . . 2 . . . . . . Insert Component 1 | . . 1 . . . . . . Analyze 1 | . . 1 . . . . . . Garrison Access Hacks . | . . . . . . . . . Unauthorized Hacks . | . . . . . . . . . Terminals . | . . . . . . . . . Fabricators . | . . . . . . . . . Repair Stations . | . . . . . . . . . Recycling Units . | . . . . . . . . . Scanalyzers . | . . . . . . . . . Garrison Access . | . . . . . . . . . Data Cores Recovered 1 | . 1 . . . . . . . Used . | . . . . . . . . . Hacking Detections 4 | . 2 1 . . 1 . . . Full Trace Events . | . . . . . . . . . Feedback Events . | . . . . . . . . . Feedback Blocked . | . . . . . . . . . Robot Schematics Acquired 3 | . . . . 3 . . . . Robots Built . | . . . . . . . . . Authchips . | . . . . . . . . . Time . | . . . . . . . . . Total Robot Build Rating . | . . . . . . . . . Part Schematics Acquired 15 | . . 1 . 14 . . . . Parts Built . | . . . . . . . . . Authchips . | . . . . . . . . . Time . | . . . . . . . . . Total Part Build Rating . | . . . . . . . . . Parts Repaired . | . . . . . . . . . Time . | . . . . . . . . . Parts Recycled . | . . . . . . . . . Recycled Matter 2 | . 2 . . . . . . . Retrieved Matter . | . . . . . . . . . Retrieved Components 8 | . 8 . . . . . . . Parts Scanalyzed 1 | . . 1 . . . . . . Part Schematics Acquired 1 | . . 1 . . . . . . Parts Damaged . | . . . . . . . . . Bothacking | -11 -10 -9 -9 -7 -6 -6 -6 -6 ------------ Run | Yrd Mat Mat Min Zio Pro Fac Low Dat Used RIF Installer . | . . . . . . . . . Robots Hacked . | . . . . . . . . . Non-combat . | . . . . . . . . . Combat . | . . . . . . . . . Robot Hacks Applied . | . . . . . . . . . Relay Couplers Released . | . . . . . . . . . Fabnet Peak Effective % . | . . . . . . . . . Robots Rewired . | . . . . . . . . . Allies Hacked 1 | . . . . . . 1 . . Hacks Repelled . | . . . . . . . . . Allies | -11 -10 -9 -9 -7 -6 -6 -6 -6 -------- Run | Yrd Mat Mat Min Zio Pro Fac Low Dat Total Allies 6 | . . . . 6 . . . . Largest Group 6 | . . . . 6 6 5 4 4 Highest-Rated Group 343 | . . . . 343 343 247 209 209 Highest-Rated Ally 96 | . . . . 96 96 96 96 96 Total Orders . | . . . . . . . . . Ally Attacks 78 | . . . . . 59 4 9 6 Total Damage 2099 | . . . . . 1327 235 389 148 Kills 12 | . . . . . 9 1 2 . Allies Corrupted . | . . . . . . . . . Allies Melted . | . . . . . . . . . Intel | -11 -10 -9 -9 -7 -6 -6 -6 -6 ------- Run | Yrd Mat Mat Min Zio Pro Fac Low Dat Robot Analysis Total . | . . . . . . . . . Derelict Logs Recovered 2 | . . . . 2 . . . . Drone Launches 1 | . . . . . . 1 . . Drone Recoveries . | . . . . . . . . . Zionite Intel Received 1 | . . . . . . 1 . . Depthwide Sectors/0 1 | . . . . . . 1 . . Exploration | -11 -10 -9 -9 -7 -6 -6 -6 -6 ------------- Run | Yrd Mat Mat Min Zio Pro Fac Low Dat Turns Passed 4637 | 83 397 443 186 2522 472 420 29 85 Spaces Moved 2785 | 59 262 199 117 1569 275 255 19 30 Core 20 | 15 . . . . . . . 5 Treads 2378 | . . 118 117 1569 275 255 19 25 Legs 387 | 44 262 81 . . . . . . Wheels . | . . . . . . . . . Hover . | . . . . . . . . . Flight . | . . . . . . . . . Fastest Speed 50 | 50 120 120 160 160 160 160 160 160 Average Speed 156 | 102 120 180 160 160 160 160 160 191 Slowest Speed 400 | 120 120 260 160 160 160 160 160 400 Overloaded Moves . | . . . . . . . . . Propulsion Burnouts . | . . . . . . . . . Robots Hopped . | . . . . . . . . . Cave-ins Triggered . | . . . . . . . . . Exploration Rate (%) 34 | 6 35 23 31 91 55 7 8 53 Regions Visited 8 Branch Regions 5 Pre-discovered Areas 13 | . . . . 3 . 10 . . Known Exits Taken . | . . . . . . . . . Unknown Exits Taken 8 | 1 1 1 1 1 1 1 1 . Scrap Searched . | . . . . . . . . . Spaces Dug . | . . . . . . . . . Terrain Destroyed 218 | . . 57 . . 99 . . 62 Melee . | . . . . . . . . . Projectile . | . . . . . . . . . AOE 218 | . . 57 . . 99 . . 62 Terrain Rammed . | . . . . . . . . . Walls Destroyed . | . . . . . . . . . Machines Disabled . | . . . . . . . . . Actions | -11 -10 -9 -9 -7 -6 -6 -6 -6 --------- Run | Yrd Mat Mat Min Zio Pro Fac Low Dat Total 2954 | 73 307 258 116 1580 292 266 18 44 Wait 10 | . . 10 . . . . . . Move 2777 | 58 261 198 116 1568 274 254 18 30 Hop . | . . . . . . . . . Pick Up 44 | 6 12 16 . 3 1 5 . 1 Fast Attach 3 | 2 1 . . . . . . . Attach 15 | 3 1 3 . . 1 4 . 3 Detach . | . . . . . . . . . Swap 21 | . 3 9 . 6 . 3 . . Drop 22 | . 9 9 . 3 1 . . . Fire 56 | 4 20 13 . . 14 . . 5 Melee 6 | . . . . . 1 . . 5 Ram . | . . . . . . . . . Kick . | . . . . . . . . . Crush . | . . . . . . . . . Escape Stasis . | . . . . . . . . . Rewire . | . . . . . . . . . Trap . | . . . . . . . . . Miscellaneous . | . . . . . . . . . Route ------- -11/Scrapyard -10/Materials (discovered 2 exits: *Mat x2) -9/Materials -9/Mines -7/Zion -6/Proximity Caves -6/Factory -6/Lower Caves -6/Data Miner (discovered 1 exit: [*Pro]) History --------- Turn | Location | Event 2 | -11/Scrapyard | Met Revision 17 58 | -11/Scrapyard | Discovered new exit (range 8) 84 | -11/Scrapyard | Entered Materials 256 | -10/Materials | Discovered new exit (range 16) 304 | -10/Materials | Build established: Mutant 441 | -10/Materials | Discovered new exit (range 15) 481 | -10/Materials | Entered another Materials area 481 | -9/Materials | Evolved 2 slots: Utility x2 869 | -9/Materials | Discovered new exit (range 14) 924 | -9/Materials | Entered Mines 1023 | -9/Mines | Build established: Scavenger-Mutant 1101 | -9/Mines | A Derelict revealed a hidden shortcut to a safe place 1110 | -9/Mines | Entered Zion 1659 | -7/Zion | Visited the Megawrench Repair Shop 1659 | -7/Zion | Megawrench repaired 9 parts 1688 | -7/Zion | Given the Hacking Drone Bay 1691 | -7/Zion | Found Prototype Device 1819 | -7/Zion | Identified Hacking Drone Bay 1824 | -7/Zion | Found CR-A16's Pointy Stick 1895 | -7/Zion | Acquired unknown access codes intercepted by a Zionite 2053 | -7/Zion | Learned location of Extension (-6) 2064 | -7/Zion | Learned location of Warlord (-5) 2119 | -7/Zion | Given A8's code to call for help 2322 | -7/Zion | Discovered new exit (range 15) 2480 | -7/Zion | Received a hallucinogenic algorithm 2685 | -7/Zion | Enhanced Grunt warped into view, answering call for help 2688 | -7/Zion | Enhanced Grunt warped into view, answering call for help 3165 | -7/Zion | Imprinted 3167 | -7/Zion | Declared Zion's savior 3632 | -7/Zion | Entered Proximity Caves 3632 | -6/Proximity Caves | Accompanied by 6 allies 3981 | -6/Proximity Caves | Spotted B-75 Beast 4006 | -6/Proximity Caves | Allies destroyed B-75 Beast 4026 | -6/Proximity Caves | Attracted the attention of an 0b10 checkpoint 4084 | -6/Proximity Caves | Discovered new exit (range 8) 4104 | -6/Proximity Caves | Entered Factory 4104 | -6/Factory | Accompanied by 5 allies 4104 | -6/Factory | Evolved 6 slots: Propulsion x2, Utility x2, Weapon x2 4293 | -6/Factory | Retrieved Zion intel report: Depthwide Sectors/0 4505 | -6/Factory | Discovered new exit (range 7) 4524 | -6/Factory | Entered Lower Caves 4524 | -6/Lower Caves | Accompanied by 4 allies 4525 | -6/Lower Caves | A Derelict revealed a hidden shortcut to meet someone special 4553 | -6/Lower Caves | Entered Data Miner 4553 | -6/Data Miner | Accompanied by 4 allies 4553 | -6/Data Miner | Discovered new exit (range 6) 4584 | -6/Data Miner | Met Data Miner 4588 | -6/Data Miner | Data Conduit disabled 4623 | -6/Data Miner | Core integrity fell below 50% 4625 | -6/Data Miner | Lost 3 allies 4635 | -6/Data Miner | Core integrity fell below 20% 4638 | -6/Data Miner | Destroyed by Enhanced Grunt with Neutron Cannon Last Messages --------------- Enhanced Grunt destroyed. The unstable cave ceiling collapses. Hvy. Rocket Launcher destroyed. Lgt. Treads destroyed. The unstable cave ceiling collapses. Terrain Scanner destroyed. The unstable cave ceiling collapses. Shield Generator destroyed. The unstable cave ceiling collapses. Imp. Ion Engine destroyed. Flight Unit destroyed. Terrain Scan Processor destroyed. Adv. Melee Analysis Suite destroyed. The unstable cave ceiling collapses. System corrupted: CR-A16's Pointy Stick rejected. The unstable cave ceiling collapses. Acquired CR-A16's Pointy Stick. Destroyed Adv. Particle Charger. [Achievement: 5k Club] Map ----- +----------------------------------------------------+ | | | | | | | | | | | | | | | | | | | | | | | | | | | | | | | | | | | ????????????#??##?#???##??????????#????#?????????? | | ??????????????????#???#?#?#??###?#?#?#????#?#????? | | ?????????????#??#?#?##?????## # #??#??##??#???? | | ?????????????????????##??#?# ?????????#??? | | ????????????????????#?##??# ?####??#?????? | | ??????????##########??#?? # # ## # #??#?????? | | ??????????""""""""""###### # # ###??????? | | ??????????""" """" """ g ! # < ##?#???#??? | | ????????""""" @ g %!% ######???# | | ????????"" * ##??# | | ???????""" =% #?#?? | | ???????"" %!%! #???? | | ???????""" * ! ##?#?? | | ????????"" %"""""""""""""#####???#? | | ????????""" ##############?#?##???? | | ?????????"" " # #?###???####??????????? | | ????????""""" " # ##??????##???##???????? | | ?????????###"## "# #######?##?#??#?#??????????? | | ???????????#?##; "##?###??#??#??##?????#??#?#??? | | ??????????????## "??##??##?#??#????#???????????? | | ??????????#???? "#???????????????#????#??#????? | | ??????????????# ????????????#?#??##????????????? | | ?????????????? ??????#???#??#?#??#???????????? | | ?????????????### ??????????#???#?????????????????? | | ???????????????? ???#??#?????????????????????????? | | ?????????????????????????????????????????????????? | | ?????????????????????????????????????????????????? | | ?????????????????????????????????????????????????? | | ?????????????????????????????????????????????????? | | ?????????????????????????????????????????????????? | | ?????????????????????????????????????????????????? | | ?????????????????????????????????????????????????? | | ?????????????????????????????????????????????????? | +----------------------------------------------------+ Best States ------------- Heat Dissipation 37 Energy Generation 12 Energy Capacity 265 Matter Stores 300 Matter Capacity 300 Sight Range 16 Terrain Scan Range 14 Terrain Scan Density 85 Jamming Range 12 Evasion (%) 55 Melee Accuracy 8 Recoil Reduction 2 Offensive Hacking 10 Item Schematics ----------------- Lgt. Treads | -9/Materials | Scanalyzed Imp. Trap Scanner | -7/Zion | Archive Corruption Screen | -7/Zion | Archive Enh. Optical Array | -7/Zion | Archive Imp. Deuterium Engine | -7/Zion | Archive Imp. Reaction Control System | -7/Zion | Archive Gauss Cannon | -7/Zion | Archive Imp. Kinecellerator | -7/Zion | Archive Plasma Cannon | -7/Zion | Archive Weapon Cycler | -7/Zion | Archive Drone Bay | -7/Zion | Archive Force Booster | -7/Zion | Archive Remote Shield | -7/Zion | Archive Hvy. Rocket Launcher | -7/Zion | Archive Adv. System Shield | -7/Zion | Archive Robot Schematics ------------------ S-27 Virus | -7/Zion | Archive T-07 Excavator | -7/Zion | Archive G-47 Trooper | -7/Zion | Archive Fabricated ------------ Nothing Alien Tech Used ----------------- None Achievements -------------- 5k Club Adventurer Help From High Places I'm Back, Baby! Made in Tau Ceti IV Maybe Next Time I'll Detach My Launcher Remodeling Risk Taker Robot Respite The More The Merrier The One The Oracle Tourist Challenges ------------ None Game ------ Seed SkeletonCatalystHumpback Manual? 0 Play Time 01:04:02 Cumulative 1.5 hours Start 2024.04.05 @ 22:05:56 End 2024.04.05 @ 23:11:55 Sessions 1 Manual Loads 0 Difficulty Rogue Special Mode None Game No. 3 Rogue 3 Adventurer 0 Explorer 0 Win Type - Total 0 Types 0/0/0/0/0/0/0/0/0 Lore% 5 Gallery% 3 Achievement% 7 Wizard Run 0 Options --------- Layout 1 ASCII 0 Keyboard 0 Movement Arrows Keybinds 0 Fullscreen 1 Font 24/Smallcaps Map View 50x35 Zoom Use 0% Tactical HUD 0 Map Filters NONE Filters NONE Steam 1 RUN: 087309ba-0088-4463-a51d-ca954ddd4542